bitfinex/quotes_SOLUSD_20250118
["timestamp","ask_amount","ask_price","bid_price","bid_amount"]
[1737204310741,23.776884,243.05,242.98,19.50810474]
[1737204311248,23.776884,243.01,242.96,0.063]
[1737204311444,19.50810474,243.04,242.96,14.4685]
[1737204311752,0.03,243.13,243.04,26.1169]
[1737204311942,0.03,243.13,243.09,19.50810474]
[1737204313465,0.03,243.13,243.11,19.50810474]
[1737204313839,0.03,243.13,243.12,4.1131]
[1737204314347,0.03,243.13,243.12,12.1131]
[1737204314653,0.03,243.13,243.12,8.0]
[1737204317662,0.03,243.19,243.16,20.0]
[1737204317859,0.03,243.22,243.21,20.0]
[1737204318062,0.03,243.22,243.21,39.50810474]
[1737204318662,0.03,243.3,243.22,1.5644]
[1737204318860,0.03,243.3,243.24,19.50810474]
[1737204319165,19.50810474,243.29,243.22,1.5644]
[1737204319570,19.50810474,243.29,243.22,4.1115]
[1737204320162,23.776884,243.26,243.2,4.1117]
[1737204320366,23.776884,243.26,243.16,11.8452]
[1737204320367,23.776884,243.22,243.16,1.5644]
[1737204320847,19.50810474,243.25,243.17,19.50810474]
[1737204321255,23.776884,243.22,243.16,5.6767]
[1737204321657,23.776884,243.22,243.15,39.50810474]
[1737204321947,23.776884,243.22,243.13,23.62090474]
[1737204322166,23.776884,243.22,243.15,19.50810474]
[1737204322467,0.03,243.27,243.21,19.50810474]
[1737204322671,0.03,243.27,243.26,19.50810474]
[1737204323774,0.03,243.27,243.26,23.61890474]
[1737204324676,0.03,243.27,243.26,31.61890474]
[1737204324874,0.03,243.27,243.26,27.50810474]
[1737204325175,0.03,243.27,243.2,19.50810474]
[1737204325365,0.03,243.27,243.26,19.50810474]
[1737204325951,0.03,243.27,243.26,23.61890474]
[1737204326462,0.03,243.27,243.26,4.1108]
[1737204326878,0.03,243.27,243.26,23.61890474]
[1737204327067,0.03,243.27,243.26,30.00440474]
[1737204327276,0.0001,243.27,243.26,30.00440474]
[1737204327662,0.03,243.34,243.29,20.0]
[1737204327960,0.03,243.38,243.34,4.1094]
[1737204328280,0.03,243.38,243.35,19.50810474]
[1737204328779,0.03,243.38,243.34,4.1094]
[1737204328969,0.03,243.38,243.34,23.61750474]
[1737204329981,23.776884,243.37,243.29,4.1102]
[1737204330362,0.03,243.38,243.3,19.50810474]
[1737204331486,19.53810474,243.38,243.29,4.1102]
[1737204331693,23.776884,243.35,243.3,19.50810474]
[1737204331862,0.03,243.38,243.32,19.50810474]
[1737204332061,0.03,243.38,243.33,4.1096]
[1737204333889,23.776884,243.37,243.3,23.61800474]
[1737204335587,0.03,243.38,243.3,19.50810474]
[1737204335882,0.03,243.38,243.32,19.50810474]
[1737204336593,0.03,243.38,243.34,19.50810474]
[1737204336763,0.03,243.38,243.37,39.50810474]
[1737204337170,0.0001,243.38,243.37,39.50810474]
[1737204337381,0.0001,243.38,243.37,41.77352232]
[1737204337578,0.0001,243.38,243.37,45.88242232]
[1737204338384,19.50810474,243.54,243.37,45.88242232]
[1737204338592,19.50810474,243.56,243.47,19.50810474]
[1737204340070,19.50810474,243.56,243.48,4.1071]
[1737204341186,19.50810474,243.6,243.48,4.1071]
[1737204341375,0.03,243.63,243.55,19.50810474]
[1737204342088,0.03,243.56,243.55,19.50810474]
[1737204343287,0.03,243.56,243.55,23.61400474]
[1737204343480,0.03,243.56,243.51,19.50810474]
[1737204343686,0.03,243.56,243.49,29.88650474]
[1737204343893,0.03,243.56,243.49,23.61490474]
[1737204344071,0.03,243.56,243.51,19.50810474]
[1737204345490,0.03,243.56,243.54,19.50810474]
[1737204346367,0.03,243.56,243.52,19.50810474]
[1737204346764,0.03,243.56,243.54,19.50810474]
[1737204347194,0.03,243.56,243.55,4.1059]
[1737204350089,0.03,243.63,243.57,20.0]
[1737204350397,0.03,243.63,243.62,19.50810474]
[1737204351398,10.2549,243.79,243.62,19.50810474]
[1737204351399,1.5555,243.85,243.65,20.0]
[1737204351618,4.1014,243.82,243.75,19.50810474]
[1737204352473,19.50810474,243.83,243.75,19.50810474]
[1737204352697,19.50810474,243.83,243.75,23.61060474]
[1737204353395,6.5561,243.93,243.79,19.50810474]
[1737204353570,19.50810474,243.88,243.79,19.50810474]
[1737204354471,19.50810474,243.87,243.8,4.1017]
[1737204355088,23.776884,243.86,243.79,19.50810474]
[1737204355386,19.50810474,243.87,243.77,19.50810474]
[1737204355588,0.03,243.88,243.79,19.50810474]
[1737204355792,0.03,243.88,243.75,0.61515251]
[1737204355793,0.03,243.88,243.86,19.50810474]
[1737204356293,0.03,243.88,243.79,8.0]
[1737204356593,0.03,243.88,243.83,4.1012]
[1737204356797,0.03,243.88,243.82,19.50810474]
[1737204356999,23.806884,243.88,243.81,4.1014]
[1737204357179,23.806884,243.88,243.8,23.60970474]
[1737204357503,23.776884,243.86,243.78,23.61000474]
[1737204357881,23.776884,243.84,243.76,19.50810474]
[1737204358088,19.50810474,243.87,243.78,19.50810474]
[1737204358504,23.776884,243.86,243.78,19.50810474]
[1737204358703,0.03,243.88,243.8,23.60970474]
[1737204359002,23.806884,243.88,243.8,23.60970474]
[1737204359887,23.776884,243.84,243.76,19.50810474]
[1737204360500,19.50810474,243.83,243.76,19.50810474]
[1737204360804,4.1303,243.88,243.81,19.50810474]
[1737204360805,0.03,243.88,243.81,19.50810474]
[1737204361011,0.03,243.88,243.86,19.50810474]
[1737204363008,0.03,243.88,243.87,4.1005]
[1737204363212,0.03,243.88,243.86,19.50810474]
[1737204363510,0.03,243.88,243.86,23.60870474]
[1737204365213,0.03,243.88,243.86,19.50810474]
[1737204366311,0.03,243.88,243.86,23.60870474]
[1737204366485,0.03,243.88,243.86,19.50810474]
[1737204367606,0.03,243.88,243.81,0.063]
[1737204367808,0.03,243.88,243.83,19.50810474]
[1737204367991,0.03,243.88,243.85,19.50810474]
[1737204370397,0.03,243.88,243.85,23.60890474]
[1737204370594,0.03,243.88,243.87,19.50810474]
[1737204373887,0.03,243.88,243.85,19.50810474]
[1737204374993,0.03,243.88,243.83,19.50810474]
[1737204375215,0.03,243.88,243.87,19.50810474]
[1737204375421,0.03,243.88,243.87,12.09751246]
[1737204377096,0.03,243.88,243.87,16.19801246]
[1737204377899,15.02274,244.0,243.9,20.0]
[1737204378113,15.02274,244.0,243.99,12.09751246]
[1737204378319,0.03,244.13,244.02,20.0]
[1737204378526,0.03,244.13,244.09,12.09751246]
[1737204378912,0.03,244.13,244.07,12.09751246]
[1737204379306,0.03,244.13,244.05,12.09751246]
[1737204379616,0.03,244.13,244.09,12.09751246]
[1737204380001,0.03,244.13,244.11,12.09751246]
[1737204380509,0.03,244.13,244.09,12.09751246]
[1737204380701,0.03,244.13,243.99,20.6144465]
[1737204380924,12.09751246,244.12,244.03,12.09751246]
[1737204381098,0.03,244.13,244.05,12.09751246]
[1737204381421,23.806884,244.13,244.05,19.33000603]
[1737204381723,23.776884,244.11,244.03,19.33000603]
[1737204381897,19.33000603,244.1,244.01,19.33000603]
[1737204382219,0.03,244.13,243.97,19.33000603]
[1737204382220,23.776884,244.05,243.97,19.33000603]
[1737204382404,23.776884,244.03,243.96,19.33000603]
[1737204382799,23.776884,244.05,243.96,19.33000603]
[1737204383215,23.776884,244.03,243.96,19.33000603]
[1737204383422,23.776884,244.03,243.9,4.26]
[1737204383423,23.776884,244.01,243.94,19.33000603]
[1737204383608,23.776884,243.99,243.9,19.33000603]
[1737204383816,4.0979,244.03,243.9,19.33000603]
[1737204383817,23.776884,243.97,243.9,19.33000603]
[1737204384403,23.776884,243.97,243.89,4.1001]
[1737204384602,19.33000603,243.98,243.89,23.43010603]
[1737204384806,19.33000603,244.0,243.91,19.33000603]
[1737204385202,19.33000603,243.98,243.89,23.43010603]
[1737204385405,23.776884,243.97,243.89,23.43010603]
[1737204385619,19.33000603,244.02,243.93,19.33000603]
[1737204385927,19.33000603,244.06,243.97,19.33000603]
[1737204386522,19.33000603,244.04,243.95,19.33000603]
[1737204386721,23.776884,244.03,243.95,19.33000603]
[1737204387023,19.33000603,244.04,243.95,23.42900603]
[1737204387206,19.33000603,244.06,243.97,19.33000603]
[1737204387406,19.33000603,244.04,243.95,23.42900603]
[1737204388016,23.776884,243.95,243.83,4.1012]
[1737204388200,19.33000603,243.97,243.88,19.33000603]
[1737204388406,19.33000603,244.04,243.95,19.33000603]
[1737204388604,19.33000603,244.02,243.93,19.33000603]
[1737204388921,4.1262,244.13,243.98,20.0]
[1737204389120,0.03,244.13,243.99,4.0985]
[1737204390024,19.33000603,244.08,243.99,4.0985]
[1737204390228,0.03,244.13,243.96,1.634]
[1737204390229,19.33000603,244.06,243.96,20.96400603]
[1737204390413,19.33000603,244.04,243.97,4.0987]
[1737204390929,23.776884,244.03,243.95,4.099]
[1737204391127,19.33000603,244.04,243.95,4.099]
[1737204391648,19.33000603,244.06,243.96,19.33000603]
[1737204391807,19.33000603,244.08,243.98,19.33000603]
[1737204392004,19.33000603,244.04,243.95,24.099]
[1737204392226,19.33000603,244.02,243.95,20.0]
[1737204392628,23.776884,244.01,243.94,23.42920603]
[1737204392933,23.776884,244.01,243.94,4.0992]
[1737204393415,23.776884,244.01,243.92,29.53460603]
[1737204393734,23.776884,244.01,243.82,1.59419827]
[1737204393735,19.33000603,243.94,243.84,20.96400603]
[1737204393935,19.33000603,243.96,243.86,23.43060603]
[1737204394131,19.33000603,243.98,243.9,19.33000603]
[1737204394322,23.776884,243.97,243.88,19.33000603]
[1737204394511,19.33000603,243.94,243.86,19.33000603]
[1737204394717,23.776884,243.93,243.86,19.33000603]
[1737204394928,6.6262,244.03,243.84,5.7349]
[1737204394929,19.33000603,243.96,243.88,19.33000603]
[1737204395229,23.776884,243.93,243.85,19.33000603]
[1737204395406,23.776884,243.93,243.85,23.43080603]
[1737204396517,6.6262,244.03,243.89,19.33000603]
[1737204396518,19.33000603,243.98,243.89,19.33000603]
[1737204396716,19.33000603,243.96,243.87,19.33000603]
[1737204397138,19.33000603,243.98,243.89,19.33000603]
[1737204397526,19.33000603,244.02,243.93,39.33000603]
[1737204398719,23.776884,244.01,243.94,4.0993]
[1737204400216,23.776884,243.97,243.89,19.33000603]
[1737204400536,23.776884,243.97,243.9,4.0999]
[1737204401647,23.776884,243.97,243.94,0.063]
[1737204402339,19.33000603,243.96,243.94,0.063]
[1737204403139,23.776884,243.95,243.94,0.063]
[1737204406619,19.33000603,243.98,243.94,0.063]
[1737204406844,19.33000603,244.01,243.94,4.1623]
[1737204407344,19.33000603,243.99,243.94,4.1623]
[1737204407525,19.33000603,243.99,243.94,0.063]
[1737204407726,19.33000603,243.99,243.94,4.1623]
[1737204408132,19.33000603,244.01,243.94,4.1623]
[1737204409637,19.33000603,244.03,243.94,4.1623]
[1737204409842,19.33000603,244.01,243.94,4.1623]
[1737204411355,12.0944504,244.0,243.94,4.1623]
[1737204411655,23.776884,243.97,243.94,0.063]
[1737204411826,35.8713344,243.95,243.94,0.063]
[1737204414346,12.0944504,243.97,243.94,4.1623]
[1737204414935,12.0944504,243.99,243.94,4.1623]
[1737204416342,12.1244504,244.01,243.94,4.1623]
[1737204418749,0.03,244.01,243.94,16.2567504]
[1737204420141,0.03,244.01,243.94,26.5051504]
[1737204420343,12.0944504,243.99,243.94,0.063]
[1737204420860,12.0944504,243.99,243.94,4.1622]
[1737204421254,12.0944504,243.99,243.94,0.063]
[1737204421763,12.0944504,243.97,243.94,0.063]
[1737204422563,35.8713344,243.95,243.94,0.063]
[1737204423561,43.14354968,243.95,243.94,0.063]
[1737204424168,47.24274968,243.95,243.94,0.063]
[1737204424353,20.0,243.91,243.81,0.063]
[1737204424538,23.776884,243.81,243.7,6.04413928]
[1737204424743,19.36666568,243.72,243.7,6.04413928]
[1737204424946,19.36666568,243.82,243.71,23.46986568]
[1737204425155,19.36666568,243.82,243.71,4.1032]
[1737204425556,19.36666568,243.82,243.74,19.36666568]
[1737204425965,19.36666568,243.82,243.77,20.0]
[1737204426262,23.776884,243.78,243.69,4.1665]
[1737204426460,19.36666568,243.74,243.69,0.063]
[1737204426661,19.36666568,243.76,243.69,0.063]
[1737204426869,19.36666568,243.78,243.7,19.36666568]
[1737204427267,19.36666568,243.78,243.73,20.0]
[1737204427455,6.2015,243.88,243.74,19.36666568]
[1737204427762,19.36666568,243.79,243.72,21.6597]
[1737204427964,19.36666568,243.77,243.72,1.6597]
[1737204428153,19.36666568,243.77,243.72,1.7227]
[1737204428349,4.1002,243.89,243.73,4.1029]
[1737204428656,19.36666568,243.83,243.75,19.36666568]
[1737204428861,4.0999,243.91,243.78,20.0]
[1737204429060,19.36666568,243.84,243.78,20.0]
[1737204429248,19.36666568,243.86,243.8,20.0]
[1737204429453,19.36666568,243.84,243.77,6.0428]
[1737204429666,23.776884,243.84,243.77,6.0428]
[1737204429963,23.776884,243.82,243.77,6.0428]
[1737204430866,23.776884,243.8,243.72,1.7227]
[1737204431168,6.2015,243.94,243.72,1.7227]
[1737204431169,4.0998,243.91,243.75,20.0]
[1737204431367,19.36666568,243.83,243.75,20.0]
[1737204431551,19.36666568,243.83,243.76,20.0]
[1737204431753,19.36666568,243.85,243.77,19.36666568]
[1737204431956,19.36666568,243.89,243.82,20.0]
[1737204432165,19.36666568,243.88,243.82,20.0]
[1737204432366,19.36666568,243.86,243.78,4.1019]
[1737204432671,19.36666568,243.83,243.78,4.1019]
[1737204433263,19.36666568,243.81,243.76,4.1022]
[1737204434575,19.36666568,243.81,243.74,4.1027]
[1737204435075,10.248,243.95,243.74,4.1027]
[1737204435076,19.36666568,243.85,243.77,39.36666568]
[1737204435453,19.36666568,243.87,243.8,20.0]
[1737204436977,19.36666568,243.89,243.82,20.0]
[1737204437274,19.36666568,243.87,243.82,20.0]
[1737204437453,19.36666568,243.87,243.81,20.0]
[1737204438375,19.36666568,243.87,243.82,4.1013]
[1737204438552,19.36666568,243.89,243.82,24.1013]
[1737204441179,19.36666568,243.87,243.82,24.1013]
[1737204441367,19.36666568,243.85,243.82,4.1013]
[1737204442156,23.776884,243.82,243.74,4.1027]
[1737204442356,23.776884,243.89,243.74,4.1027]
[1737204442573,19.36666568,243.8,243.74,4.1027]
[1737204443373,1.5095,243.9,243.74,4.1027]
[1737204443374,19.36666568,243.78,243.74,4.1027]
[1737204443559,19.36666568,243.8,243.73,14.3601]
[1737204443754,19.36666568,243.82,243.76,20.0]
[1737204443975,19.36666568,243.86,243.8,20.0]
[1737204444681,19.36666568,243.9,243.84,20.0]
[1737204445075,19.36666568,243.9,243.86,20.0]
[1737204446377,19.36666568,243.88,243.85,4.1008]
[1737204446695,19.36666568,243.97,243.9,20.0]
[1737204447071,19.36666568,243.97,243.91,4.0998]
[1737204447467,19.36666568,243.95,243.91,4.0998]
[1737204447776,19.36666568,243.95,243.92,20.0]
[1737204448570,0.03,244.01,243.93,16.03176568]
[1737204448771,0.0001,244.0,243.97,19.36666568]
[1737204449183,0.0001,244.0,243.98,4.0986]
[1737204450164,0.03,244.06,243.99,19.36666568]
[1737204450463,19.39666568,244.13,244.05,19.36666568]
[1737204451085,19.39666568,244.13,244.03,19.36666568]
[1737204451283,19.39666568,244.13,243.95,4.0992]
[1737204451284,23.776884,244.03,243.95,4.0992]
[1737204451484,20.0,243.94,243.79,12.37883928]
[1737204451675,19.36666568,243.85,243.79,12.37883928]
[1737204451984,19.36666568,243.87,243.79,6.3347]
[1737204452185,19.36666568,243.8,243.74,6.04413928]
[1737204452485,19.36666568,243.97,243.74,6.04413928]
[1737204452486,19.36666568,243.75,243.74,6.04413928]
[1737204452668,19.36666568,243.75,243.72,0.063]
[1737204452874,19.36666568,243.77,243.72,0.063]
[1737204455278,19.36666568,243.75,243.72,0.063]
[1737204455985,19.36666568,243.73,243.72,0.063]
[1737204456168,43.14354968,243.73,243.72,0.063]
[1737204456482,19.36666568,243.73,243.72,0.063]
[1737204457386,66.61311536,243.73,243.72,0.063]
[1737204458463,20.0,243.7,243.69,0.063]
[1737204458668,20.0,243.7,243.62,0.063]
[1737204458669,63.14354968,243.7,243.62,0.063]
[1737204458879,43.14354968,243.63,243.62,0.063]
[1737204459688,19.36666568,243.63,243.62,0.063]
[1737204460084,43.14354968,243.63,243.62,0.063]
[1737204460392,19.36666568,243.63,243.62,0.063]
[1737204461200,19.36666568,243.65,243.62,0.063]
[1737204461374,19.36666568,243.65,243.63,4.1045]
[1737204462786,19.36666568,243.67,243.63,4.1045]
[1737204463188,19.36666568,243.65,243.63,4.1045]
[1737204463774,19.36666568,243.69,243.63,34.3659]
[1737204464591,19.36666568,243.72,243.63,53.73256568]
[1737204465296,19.36666568,243.67,243.62,0.063]
[1737204465468,23.776884,243.72,243.62,0.063]
[1737204465469,19.36666568,243.65,243.62,0.063]
[1737204465672,19.36666568,243.63,243.62,0.063]
[1737204465987,19.36666568,243.65,243.62,0.063]
[1737204466168,19.36666568,243.65,243.62,4.1677]
[1737204466366,19.36666568,243.67,243.62,4.1677]
[1737204468287,19.36666568,243.69,243.62,34.4295]
[1737204468680,19.36666568,243.71,243.62,34.4295]
[1737204468877,19.36666568,243.73,243.64,19.36666568]
[1737204469196,19.36666568,243.73,243.67,20.0]
[1737204469977,19.36666568,243.73,243.68,24.1037]
[1737204471200,19.36666568,243.71,243.68,24.1037]
[1737204471503,19.36666568,243.73,243.68,24.1037]
[1737204473899,19.36666568,243.75,243.69,20.0]
[1737204474101,19.36666568,243.75,243.71,20.0]
[1737204474479,19.36666568,243.77,243.72,4.103]
[1737204475181,19.36666568,243.81,243.75,20.0]
[1737204475573,23.776884,243.89,243.75,20.0]
[1737204475779,19.36666568,243.8,243.75,20.0]
[1737204478004,19.36666568,243.76,243.71,4.1032]
[1737204478383,19.36666568,243.74,243.71,4.1032]
[1737204479486,19.36666568,243.72,243.71,4.1032]
[1737204479692,19.36666568,243.72,243.68,4.1037]
[1737204480206,19.36666568,243.72,243.65,4.1042]
[1737204480397,19.36666568,243.72,243.67,20.0]
[1737204480580,19.36666568,243.72,243.65,4.1042]
[1737204480779,19.36666568,243.7,243.65,4.1042]
[1737204481006,19.36666568,243.68,243.65,4.1042]
[1737204481496,19.36666568,243.7,243.65,4.1042]
[1737204482808,4.1003,243.88,243.68,19.36666568]
[1737204482989,19.36666568,243.79,243.73,20.0]
[1737204483196,10.249,243.93,243.71,20.0]
[1737204483197,19.36666568,243.85,243.79,20.0]
[1737204483400,19.36666568,243.81,243.7,20.90546568]
[1737204483583,19.36666568,243.73,243.63,4.1045]
[1737204483903,19.36666568,243.75,243.66,19.36666568]
[1737204484504,19.36666568,243.79,243.7,19.36666568]
[1737204484685,5.74786168,243.93,243.7,19.36666568]
[1737204484881,19.36666568,243.79,243.71,4.1032]
[1737204485195,19.36666568,243.77,243.71,4.1032]
[1737204486003,19.36666568,243.79,243.71,34.3612]
[1737204486304,19.36666568,243.81,243.75,20.0]
[1737204486492,19.36666568,243.79,243.71,14.3612]
[1737204487007,19.36666568,243.75,243.71,4.1032]
[1737204487396,19.36666568,243.75,243.67,4.1039]
[1737204488378,19.36666568,243.75,243.63,14.3657]
[1737204488578,19.36666568,243.75,243.68,20.0]
[1737204488782,19.36666568,243.79,243.69,19.36666568]
[1737204489109,19.36666568,243.79,243.72,20.0]
[1737204489489,19.36666568,243.81,243.72,20.0]
[1737204490292,0.03,243.77,243.72,20.0]
[1737204490987,0.03,243.77,243.73,4.1029]
[1737204491717,0.03,243.77,243.76,20.0]
[1737204492609,19.36666568,243.84,243.78,20.0]
[1737204492902,19.36666568,243.86,243.81,4.1015]
[1737204493286,19.36666568,243.88,243.81,14.3553]
[1737204493989,19.36666568,243.92,243.86,20.0]
[1737204494301,0.03,243.95,243.87,19.36666568]
[1737204494507,0.03,243.95,243.9,20.0]
[1737204495006,0.03,243.95,243.93,4.0995]
[1737204496405,0.03,243.95,243.87,19.36666568]
[1737204496607,19.36666568,243.92,243.88,4.1003]
[1737204496910,19.36666568,243.92,243.86,10.2516]
[1737204497105,19.36666568,243.92,243.85,4.1008]
[1737204497701,19.36666568,243.92,243.85,14.353]
[1737204497888,19.36666568,243.94,243.88,20.0]
[1737204498385,19.36666568,243.92,243.88,20.0]
[1737204498594,19.36666568,243.9,243.85,4.1008]
[1737204499488,19.36666568,243.88,243.82,4.1013]
[1737204499804,19.36666568,243.88,243.83,20.0]
[1737204500009,19.36666568,243.9,243.83,20.0]
[1737204500308,19.36666568,243.9,243.82,14.3547]
[1737204500995,19.36666568,243.86,243.82,4.1013]
[1737204501600,19.36666568,243.86,243.79,4.1018]
[1737204502306,0.03,243.95,243.81,19.36666568]
[1737204502515,19.36666568,243.94,243.84,19.36666568]
[1737204502695,19.36666568,243.94,243.87,20.0]
[1737204503299,23.776884,243.87,243.79,14.3565]
[1737204503612,19.36666568,243.86,243.79,14.3565]
[1737204504112,19.36666568,243.88,243.8,19.36666568]
[1737204504290,19.36666568,243.88,243.79,14.3565]
[1737204504792,19.36666568,243.86,243.79,4.1018]
[1737204504985,19.36666568,243.84,243.79,4.1018]
[1737204505410,19.36666568,243.86,243.79,4.1018]
[1737204506195,19.36666568,243.86,243.79,14.3565]
[1737204506697,0.03,243.95,243.79,14.3565]
[1737204506698,0.03,243.95,243.84,19.36666568]
[1737204506903,19.36666568,243.93,243.84,19.36666568]
[1737204507209,0.03,243.95,243.9,19.36666568]
[1737204507909,0.03,243.95,243.88,19.36666568]
[1737204508114,0.03,243.95,243.91,20.0]
[1737204508296,10.0,244.0,243.95,20.0]
[1737204508493,10.0,244.0,243.94,19.36666568]
[1737204508689,10.0,244.0,243.97,20.0]
[1737204508889,10.0,244.0,243.98,19.36666568]
[1737204509113,0.03,244.06,243.98,19.36666568]
[1737204509610,19.36666568,244.05,243.98,19.36666568]
[1737204510210,19.36666568,244.05,243.99,4.0985]
[1737204512316,19.36666568,244.05,243.97,4.0988]
[1737204512494,19.36666568,244.03,243.97,24.0988]
[1737204512695,23.776884,244.02,243.95,4.099]
[1737204512894,19.36666568,243.99,243.93,10.3247]
[1737204513914,23.776884,244.0,243.93,10.3247]
[1737204514103,23.776884,243.98,243.91,4.0997]
[1737204514610,19.36666568,243.97,243.89,4.1]
[1737204514791,19.36666568,243.91,243.87,11.9892]
[1737204514991,19.36666568,243.91,243.87,10.3257]
[1737204515196,23.776884,243.96,243.87,6.2253]
[1737204515197,19.36666568,243.89,243.87,6.2253]
[1737204515406,19.36666568,243.89,243.83,4.101]
[1737204515613,19.36666568,243.87,243.83,4.101]
[1737204516016,19.36666568,243.85,243.77,4.1651]
[1737204516225,19.36666568,243.79,243.77,4.1651]
[1737204517020,19.36666568,243.81,243.77,4.1651]
[1737204517207,19.36666568,243.81,243.77,24.1651]
[1737204517612,19.36666568,243.79,243.77,4.1651]
[1737204518613,19.36666568,243.79,243.77,0.063]
[1737204520112,19.36666568,243.79,243.77,4.1652]
[1737204521114,19.36666568,243.81,243.77,14.4207]
[1737204521735,19.36666568,243.81,243.8,20.0]
[1737204522024,23.776884,243.92,243.8,20.0]
[1737204522227,19.36666568,243.9,243.84,20.0]
[1737204522398,19.36666568,243.92,243.86,20.0]
[1737204522598,19.36666568,243.92,243.88,20.0]
[1737204523205,19.36666568,243.92,243.83,25.59196568]
[1737204523615,19.36666568,243.92,243.86,20.0]
[1737204524322,23.776884,243.86,243.78,4.102]
[1737204524524,19.36666568,243.79,243.77,0.063]
[1737204527421,23.776884,243.78,243.77,0.063]
[1737204527629,19.36666568,243.79,243.77,0.063]
[1737204527806,23.46856568,243.79,243.77,0.063]
[1737204528007,23.776884,243.78,243.77,0.063]
[1737204531114,4.1022,243.77,243.65,4.1671]
[1737204531425,19.36666568,243.66,243.65,0.063]
[1737204534903,4.1027,243.74,243.65,0.063]
[1737204535211,6.35606365,243.92,243.68,19.36666568]
[1737204535521,19.36666568,243.78,243.73,20.0]
[1737204535717,4.0998,243.91,243.73,20.0]
[1737204535919,19.36666568,243.83,243.77,20.0]
[1737204536319,19.36666568,243.85,243.77,19.36666568]
[1737204536527,19.36666568,243.87,243.77,19.36666568]
[1737204536917,19.36666568,243.87,243.81,20.0]
[1737204537325,19.36666568,243.87,243.82,20.0]
[1737204537728,19.36666568,243.83,243.81,6.0233]
[1737204537932,23.776884,243.82,243.78,4.102]
[1737204538115,19.36666568,243.79,243.78,4.102]
[1737204538826,19.36666568,243.79,243.75,6.0233]
[1737204539015,19.36666568,243.77,243.75,10.1257]
[1737204539211,1.6189074,243.96,243.75,39.74876568]
[1737204539428,19.36666568,243.85,243.8,20.0]
[1737204539944,19.36666568,243.87,243.82,20.0]
[1737204540832,19.36666568,243.96,243.78,4.102]
[1737204540833,23.776884,243.82,243.78,4.102]
[1737204541133,19.36666568,243.8,243.78,4.102]
[1737204542130,19.36666568,243.8,243.77,0.063]
[1737204542331,23.776884,243.79,243.77,0.063]
[1737204542633,43.14354968,243.78,243.77,0.063]
[1737204544036,27.879084,243.77,243.65,0.063]
[1737204544335,19.36666568,243.66,243.65,0.063]
[1737204544539,43.14354968,243.66,243.65,0.063]
[1737204546322,23.776884,243.66,243.65,0.063]
[1737204546538,43.14354968,243.66,243.65,0.063]
[1737204546834,43.14354968,243.66,243.62,0.063]
[1737204546835,27.881084,243.65,243.62,0.063]
[1737204547014,27.881084,243.65,243.58,0.063]
[1737204547015,38.73333136,243.63,243.58,0.063]
[1737204547215,19.36666568,243.59,243.58,0.063]
[1737204547447,19.36666568,243.65,243.59,4.1052]
[1737204547615,19.36666568,243.61,243.58,0.063]
[1737204547943,19.36666568,243.59,243.58,0.063]
[1737204548236,43.14354968,243.59,243.58,0.063]
[1737204548427,23.776884,243.59,243.58,0.063]
[1737204549050,29.62466568,243.72,243.58,0.063]
[1737204549051,19.36666568,243.62,243.58,4.1683]
[1737204549219,19.36666568,243.64,243.58,4.1683]
[1737204549533,23.776884,243.63,243.58,4.1683]
[1737204549912,19.36666568,243.66,243.62,4.1047]
[1737204550115,19.36666568,243.68,243.62,4.1047]
[1737204550642,19.36666568,243.66,243.62,4.1047]
[1737204550843,19.36666568,243.64,243.6,4.105]
[1737204551028,19.36666568,243.62,243.58,4.1683]
[1737204551535,19.36666568,243.66,243.6,20.0]
[1737204551727,19.36666568,243.68,243.62,20.0]
[1737204551926,19.36666568,243.64,243.58,4.1683]
[1737204552131,19.36666568,243.62,243.58,4.1683]
[1737204552742,23.776884,243.61,243.58,0.063]